[Event "Marmaris Karya-14 IM 2022"]
[Site "Icmeler-Marmaris"]
[Date "2022.02.04"]
[Round "8.3"]
[White "Ahmad, Al Khatib"]
[Black "Ozsakallioglu, Okan"]
[Result "0-1"]
[ECO "B48"]
[WhiteElo "2218"]
[BlackElo "2179"]
[Annotator "RC"]
[PlyCount "54"]
[EventDate "2022.02.01"]
[EventType "schev"]
[EventCountry "TUR"]
[SourceTitle "playchess.com"]
[Source "ChessBase"]
[SourceQuality "1"]
[TimeControl "5400+30"]

1. e4 {[%emt 0:01:00]} c5 {[%emt 0:03:00]} 2. Nf3 {[%emt 0:00:00]} e6 {[%emt 0:00:00]} 3. d4 {[%emt 0:00:00]} cxd4 {[%emt 0:00:00]} 4. Nxd4 {[%emt 0:00:00]} Nf6 {[%emt 0:00:00]} 5. Nc3 {[%emt 0:00:00]} Nc6 {[%emt 0:00:00]} 6. a3 {[%emt 0:00:30]} Qc7 {[%emt 0:00:30]} 7. Be3 {[%emt 0:03:30]} a6 {[%emt 0:03:30]} 8. f4 {[%emt 0:04:30]} d6 {[%emt 0:01:30]} 9. Bd3 {[%emt 0:17:30]} Nxd4 {[%emt 0:00:30]} 10. Bxd4 {[%emt 0:00:30]} e5 {[%emt 0:00:30]} 11. Be3 {[%emt 0:08:30]} exf4 {[%emt 0:06:30]} 12. Bxf4 {[%emt 0:00:30]} Be6 {[%emt 0:00:30]} 13. O-O {[%emt 0:01:30]} Be7 {[%emt 0:02:30]} 14. Kh1 {[%emt 0:00:30]} O-O {[%emt 0:02:30]} 15. Nd5 {[%emt 0:09:30]} Bxd5 {[%emt 0:00:30]} 16. exd5 {[%emt 0:00:00]} Nd7 {[%emt 0:01:30]} 17. Rf3 {[%emt 0:07:00]} g6 {[%emt 0:00:30]} 18. Qd2 {[%emt 0:00:30]} Rfe8 {[%emt 0:02:30]} 19. Raf1 {[%emt 0:15:30]} Bf8 {[%emt 0:00:30]} 20. c4 {[%emt 0:11:40]} Bg7 {[%emt 0:06:30]} 21. b4 {[%emt 0:00:31]} b6 {[%emt 0:00:30]} 22. Qf2 {[%emt 0:03:21]} f5 {[%emt 0:00:30]} 23. Rh3 {[%emt 0:01:14]} Ne5 {[%emt 0:05:30]} 24. Bb1 {[%emt 0:09:39]} Qxc4 {[%emt 0:00:30]} 25. Rc1 {[%emt 0:00:27]} Ng4 {[%emt 0:01:30]} 26. Qh4 {[%emt 0:00:31]} Qxf4 {[%emt 0:00:30]} 27. Qxh7+ {[%emt 0:02:10]} Kf8 {[%emt 0:00:00]} 0-1